lending/lending_fUSD_20241005
["ID","MTS","AMOUNT","RATE_DAILY","PERIOD"]
[339930976,1728160277885,-151.0,0.00042898,14]
[339930977,1728160277895,-151.0,0.00042898,14]
[339930978,1728160277905,-271.495954,0.00042898,14]
[339930979,1728160277913,-271.495954,0.00042898,14]
[339930980,1728160277922,-280.104999,0.00042898,14]
[339930981,1728160277933,-280.104999,0.00042898,14]
[339930982,1728160277943,-151.0,0.00042898,14]
[339930983,1728160277954,-151.0,0.00042898,14]
[339930984,1728160277963,-151.0,0.00042898,14]
[339930985,1728160277973,-151.0,0.00042898,14]
[339930986,1728160277982,-244.437856,0.00042898,14]
[339930987,1728160277991,-151.0,0.00042898,14]
[339930988,1728160278000,-151.0,0.00042898,14]
[339930989,1728160278010,-151.0,0.00042898,14]
[339930990,1728160278019,-151.0,0.00042898,14]
[339930991,1728160278030,-151.0,0.00042898,14]
[339930992,1728160278039,-151.0,0.00042898,14]
[339930993,1728160278049,-151.0,0.00042898,14]
[339930994,1728160278059,-151.0,0.00042898,14]
[339930995,1728160278069,-151.0,0.00042898,14]
[339930996,1728160278078,-167.57908602,0.000429,9]
[339930997,1728160278087,-9622.3875297,0.00042971,2]
[339930998,1728160278097,-8572.7610839,0.00042971,2]
[339930999,1728160278106,-2021.9702521,0.00042971,2]
[339931000,1728160278116,-1500.8194258,0.00042971,2]
[339931001,1728160278126,-3297.490745,0.00042971,2]
[339931002,1728160278135,-2623.6634029,0.00042971,2]
[339931003,1728160278145,-1949.8360609,0.00042971,2]
[339931004,1728160278154,-45429.6381292,0.00042971,2]
[339931005,1728160278164,-33762.0849378,0.00042971,2]
[339931006,1728160278173,-317.5,0.0004299,30]
[339931007,1728160278183,-1000.0,0.00042999,120]
[339931008,1728160278193,-50000.0,0.00043,33]
[339931009,1728160278203,-50000.0,0.00043,43]
[339931010,1728160278213,-8998085.68,0.00043,60]
[339931011,1728160278223,-151.0,0.00043,14]
[339931012,1728160278232,-152.635953,0.00043,14]
[339931013,1728160278242,-151.0,0.00043,14]
[339931014,1728160278251,-151.0,0.00043,14]
[339931015,1728160278261,-151.0,0.00043,14]
[339931016,1728160278270,-151.0,0.00043,14]
[339931017,1728160278280,-151.0,0.00043,14]
[339931018,1728160278289,-295.22384,0.00043,14]
[339931019,1728160278299,-295.22384,0.00043,14]
[339931020,1728160278309,-151.0,0.00043,14]
[339931021,1728160278319,-151.0,0.00043,14]
[339931022,1728160278328,-271.495954,0.00043,14]
[339931023,1728160278338,-271.495954,0.00043,14]
[339931024,1728160278347,-280.104999,0.00043,14]
[339931025,1728160278356,-280.104999,0.00043,14]
[339931026,1728160278365,-151.0,0.00043,14]
[339931027,1728160278375,-151.0,0.00043,14]
[339931028,1728160278384,-151.0,0.00043,14]
[339931029,1728160278395,-502.18107669,0.00043,30]
[339931030,1728160278404,-151.0,0.00043,14]
[339931031,1728160278413,-151.0,0.00043,14]
[339931032,1728160278423,-151.0,0.00043,14]
[339931033,1728160278432,-179.135244,0.00043,14]
[339931034,1728160278441,-281.229622,0.00043,14]
[339931035,1728160278451,-151.0,0.00043,14]
[339931036,1728160278460,-151.0,0.00043,14]
[339931037,1728160278469,-652.538585,0.00043234,30]
[339931038,1728160278479,-1639.289298,0.00043234,30]
[339931039,1728160278488,-500.0,0.00043287,120]
[339931040,1728160278497,-819.04,0.00043287,30]
[339931041,1728160278507,-500.0,0.00043287,120]
[339931042,1728160278516,-713.62,0.00043287,120]
[339931043,1728160278525,-500.0,0.00043287,120]
[339931044,1728160278534,-500.0,0.00043287,120]
[339931045,1728160278543,-500.0,0.00043287,120]
[339931046,1728160278552,-500.0,0.00043287,120]
[339931047,1728160278562,-500.0,0.00043287,120]
[339931048,1728160278571,-500.0,0.00043287,120]
[339931049,1728160278581,-516.25,0.00043287,120]
[339931050,1728160278590,-500.0,0.00043287,120]
[339931051,1728160278599,-711.55,0.00043287,120]
[339931052,1728160278609,-500.0,0.00043287,30]
[339931053,1728160278619,-500.0,0.00043287,120]
[339931054,1728160278628,-500.0,0.00043287,120]
[339931055,1728160278638,-238.14,0.00043287,120]
[339931056,1728160278647,-664.29,0.00043287,120]
[339931057,1728160278656,-500.0,0.00043287,120]
[339931058,1728160278666,-500.0,0.00043287,30]
[339931059,1728160278675,-500.0,0.00043287,120]
[339931060,1728160278685,-500.0,0.00043287,120]
[339931061,1728160278694,-1092.13,0.00043287,120]
[339931062,1728160278703,-500.0,0.00043287,120]
[339931063,1728160278714,-500.0,0.00043287,120]
[339931064,1728160278724,-575.62,0.00043287,120]
[339931065,1728160278733,-740.53,0.00043287,120]
[339931066,1728160278743,-500.0,0.00043287,120]
[339931067,1728160278752,-1003.23,0.00043287,120]
[339931068,1728160278762,-500.0,0.00043287,120]
[339931069,1728160278772,-773.95,0.00043287,120]
[339931070,1728160278782,-1041.19,0.00043287,120]
[339931071,1728160278792,-855.74,0.00043287,120]
[339931072,1728160278801,-522.45,0.00043287,120]
[339931073,1728160278812,-528.13,0.00043287,120]
[339931074,1728160278821,-540.71,0.00043287,120]
[339931075,1728160278831,-1571.62,0.00043287,120]
[339931076,1728160278841,-906.95,0.00043287,120]
[339931077,1728160278850,-910.76,0.00043287,120]
[339931078,1728160278860,-1100.09,0.00043287,120]
[339931079,1728160278869,-802.95,0.00043287,120]
[339931080,1728160278878,-843.51,0.00043287,120]
[339931081,1728160278888,-942.42,0.00043287,120]
[339931082,1728160278897,-1026.8,0.00043287,120]
[339931083,1728160278907,-1281.74,0.00043287,120]
[339931084,1728160278917,-500.0,0.00043287,120]
[339931085,1728160278927,-500.0,0.00043287,120]
[339931086,1728160278936,-994.5,0.00043287,120]
[339931087,1728160278946,-938.76,0.00043287,120]
[339931088,1728160278956,-1170.38,0.00043287,120]
[339931089,1728160278966,-912.82,0.00043287,120]
[339931090,1728160278976,-1002.9,0.00043287,120]
[339931091,1728160278986,-500.0,0.00043287,120]
[339931092,1728160278996,-1084.38,0.00043287,120]
[339931093,1728160279006,-706.32,0.00043287,120]
[339931094,1728160279015,-1023.73,0.00043287,120]
[339931095,1728160279025,-500.0,0.00043287,120]
[339931096,1728160279035,-500.0,0.00043287,120]
[339931097,1728160279045,-842.51,0.00043287,120]
[339931098,1728160279055,-689.81,0.00043287,120]
[339931099,1728160279065,-532.86,0.00043287,120]
[339931100,1728160279074,-500.0,0.00043287,120]
[339931101,1728160279084,-500.0,0.00043287,120]
[339931102,1728160279094,-1071.49,0.00043287,120]
[339931103,1728160279104,-500.0,0.00043287,120]
[339931104,1728160279113,-1043.66,0.00043287,120]
[339931105,1728160279123,-500.0,0.00043287,120]
[339931106,1728160279132,-1009.53,0.00043287,120]
[339931107,1728160279142,-500.0,0.00043287,120]
[339931108,1728160279151,-787.17,0.00043287,120]
[339931109,1728160279161,-500.0,0.00043287,120]
[339931110,1728160279171,-681.86,0.00043287,120]
[339931111,1728160279181,-529.07,0.00043287,120]
[339931112,1728160279191,-995.14,0.00043287,120]
[339931113,1728160279200,-1349.08,0.00043287,120]
[339931114,1728160279210,-500.0,0.00043287,120]
[339931115,1728160279220,-2800.0,0.00043356,60]
[339931116,1728160279230,-3800.0,0.00043356,60]
[339931117,1728160279239,-500.0,0.00043356,60]
[339931118,1728160279249,-151.100605,0.00043498,120]
[339931119,1728160279259,-5800.0,0.00043503,2]
[339931120,1728160279268,-500.0,0.00043698,120]
[339931121,1728160279277,-819.04,0.00043698,30]
[339931122,1728160279287,-500.0,0.00043698,120]
[339931123,1728160279297,-713.62,0.00043698,120]
[339931124,1728160279306,-500.0,0.00043698,120]
[339931125,1728160279316,-500.0,0.00043698,120]
[339931126,1728160279325,-500.0,0.00043698,120]
[339931127,1728160279334,-500.0,0.00043698,120]
[339931128,1728160279344,-500.0,0.00043698,120]
[339931129,1728160279354,-500.0,0.00043698,120]
[339931130,1728160279363,-500.0,0.00043698,120]
[339931131,1728160279372,-711.55,0.00043698,120]
[339931132,1728160279381,-500.0,0.00043698,30]
[339931133,1728160279391,-500.0,0.00043698,120]
[339931134,1728160279401,-500.0,0.00043698,120]
[339931135,1728160279410,-238.14,0.00043698,120]
[339931136,1728160279420,-664.29,0.00043698,120]
[339931137,1728160279430,-500.0,0.00043698,120]
[339931138,1728160279439,-500.0,0.00043698,30]
[339931139,1728160279448,-500.0,0.00043698,120]
[339931140,1728160279458,-500.0,0.00043698,120]
[339931141,1728160279467,-1092.13,0.00043698,120]
[339931142,1728160279477,-575.59,0.00043698,120]
[339931143,1728160279486,-500.0,0.00043698,120]
[339931144,1728160279496,-575.62,0.00043698,120]
[339931145,1728160279505,-740.53,0.00043698,120]
[339931146,1728160279514,-500.0,0.00043698,120]
[339931147,1728160279523,-1003.23,0.00043698,120]
[339931148,1728160279534,-500.0,0.00043698,120]
[339931149,1728160279544,-773.95,0.00043698,120]
[339931150,1728160279553,-1041.19,0.00043698,120]
[339931151,1728160279563,-855.74,0.00043698,120]
[339931152,1728160279572,-522.45,0.00043698,120]
[339931153,1728160279581,-528.13,0.00043698,120]
[339931154,1728160279591,-540.71,0.00043698,120]
[339931155,1728160279600,-1571.62,0.00043698,120]
[339931156,1728160279610,-906.95,0.00043698,120]
[339931157,1728160279619,-910.76,0.00043698,120]
[339931158,1728160279629,-1100.09,0.00043698,120]
[339931159,1728160279639,-802.95,0.00043698,120]
[339931160,1728160279649,-843.51,0.00043698,120]
[339931161,1728160279660,-942.42,0.00043698,120]
[339931162,1728160279669,-1026.8,0.00043698,120]
[339931163,1728160279678,-1281.74,0.00043698,120]
[339931164,1728160279688,-500.0,0.00043698,120]
[339931165,1728160279697,-495.4,0.00043698,120]
[339931166,1728160279706,-994.5,0.00043698,120]
[339931167,1728160279716,-938.76,0.00043698,120]
[339931168,1728160279729,-1170.38,0.00043698,120]
[339931169,1728160279738,-912.82,0.00043698,120]
[339931170,1728160279747,-1002.9,0.00043698,120]
[339931171,1728160279757,-500.0,0.00043698,120]
[339931172,1728160279766,-1084.38,0.00043698,120]
[339931173,1728160279776,-706.32,0.00043698,120]
[339931174,1728160279786,-1023.73,0.00043698,120]
[339931175,1728160279795,-500.0,0.00043698,120]
[339931176,1728160279805,-500.0,0.00043698,120]
[339931177,1728160279814,-842.51,0.00043698,120]
[339931178,1728160279824,-689.81,0.00043698,120]
[339931179,1728160279834,-532.86,0.00043698,120]
[339931180,1728160279843,-643.63386305,0.00043698,120]
[339931181,1728160279852,-500.0,0.00043698,120]
[339931182,1728160279972,-1071.49,0.00043698,120]
[339931183,1728160279982,-500.0,0.00043698,120]
[339931184,1728160279991,-1043.66,0.00043698,120]
[339931185,1728160280000,-500.0,0.00043698,120]
[339931186,1728160280010,-1009.53,0.00043698,120]
[339931187,1728160280019,-500.0,0.00043698,120]
[339931188,1728160280029,-787.17,0.00043698,120]
[339931189,1728160280039,-500.0,0.00043698,120]
[339931190,1728160280049,-681.86,0.00043698,120]
[339931191,1728160280058,-529.07,0.00043698,120]
[339931192,1728160280067,-995.14,0.00043698,120]
[339931193,1728160280077,-1349.08,0.00043698,120]
[339931194,1728160280086,-500.0,0.00043698,120]
[339931195,1728160280095,-652.538585,0.00043767,30]
[339931196,1728160280105,-1639.289298,0.00043767,30]
[339931197,1728160280114,-184.150902,0.00043767,30]
[339931198,1728160280123,-500.0,0.00043787,60]
[339931199,1728160280133,-2119.06423566,0.000438,120]
[339931200,1728160280142,-2250.0,0.00043835,14]
[339931201,1728160280151,-500.0,0.00043882,120]
[339931202,1728160280161,-900.0,0.00043904,120]
[339931203,1728160280170,-500.0,0.00043916,60]
[339931204,1728160280179,-500.0,0.00043936,4]
[339931205,1728160280188,-500.0,0.00043945,4]
[339931206,1728160280198,-500.0,0.00043954,4]
[339931207,1728160280207,-500.0,0.00043963,4]
[339931208,1728160280216,-7523.134638,0.0004397,2]
[339931209,1728160280226,-979.6685995,0.0004397,2]
[339931210,1728160280235,-1276.0087188,0.0004397,2]
[339931211,1728160280244,-22094.5317464,0.0004397,2]
[339931212,1728160280253,-500.0,0.00043972,4]
[339931213,1728160280262,-500.0,0.0004398,4]
[339931214,1728160280271,-500.0,0.00043989,4]
[339931215,1728160280281,-1121.98346414,0.0004399,10]
[339931216,1728160280289,-500.0,0.00043998,60]
[339931217,1728160280298,-500.0,0.00043998,4]
[339931218,1728160280307,-1000.0,0.00043999,120]
[339931219,1728160280316,-50000.0,0.00044,34]
[339931220,1728160280326,-50000.0,0.00044,44]
[339931221,1728160280335,-2110.0,0.00044,2]
[339931222,1728160280344,-50000.0,0.00044,30]
[339931223,1728160280353,-250.0,0.00044,14]
[339931224,1728160280362,-563034.0,0.00044,120]
[339931225,1728160280371,-810735.0,0.00044,120]
[339931226,1728160280380,-151.0,0.00044,14]
[339931227,1728160280389,-151.0,0.00044,14]
[339931228,1728160280398,-151.0,0.00044,14]
[339931229,1728160280407,-151.0,0.00044,14]
[339931230,1728160280417,-151.0,0.00044,14]
[339931231,1728160280426,-151.0,0.00044,14]
[339931232,1728160280435,-151.0,0.00044,14]
[339931233,1728160280444,-151.0,0.00044,14]
[339931234,1728160280453,-220.043102,0.00044,14]
[339931235,1728160280463,-295.22384,0.00044,14]
[339931236,1728160280472,-295.22384,0.00044,14]
[339931237,1728160280481,-295.22384,0.00044,14]
[339931238,1728160280490,-295.22384,0.00044,14]
[339931239,1728160280499,-151.0,0.00044,14]
[339931240,1728160280508,-151.0,0.00044,14]
[339931241,1728160280517,-299.0306,0.00044,14]
[339931242,1728160280526,-271.495954,0.00044,14]
[339931243,1728160280538,-271.495954,0.00044,14]
[339931244,1728160280547,-271.495954,0.00044,14]
[339931245,1728160280556,-271.495954,0.00044,14]
[339931246,1728160280566,-280.104999,0.00044,14]
[339931247,1728160280576,-280.104999,0.00044,14]
[339931248,1728160280585,-280.104999,0.00044,14]
[339931249,1728160280594,-280.104999,0.00044,14]
[339931250,1728160280603,-279.504056,0.00044,14]
[339931251,1728160280612,-248.65731,0.00044,14]
[339931252,1728160280622,-151.0,0.00044,14]
[339931253,1728160280631,-501.043865,0.00044,57]
[339931254,1728160280640,-151.0,0.00044,14]
[339931255,1728160280650,-151.0,0.00044,14]
[339931256,1728160280659,-151.0,0.00044,14]
[339931257,1728160280668,-151.0,0.00044,14]
[339931258,1728160280677,-151.0,0.00044,14]
[339931259,1728160280686,-151.0,0.00044,14]
[339931260,1728160280694,-151.0,0.00044,14]
[339931261,1728160280703,-151.0,0.00044,14]
[339931262,1728160280712,-500.0,0.00044007,4]
[339931263,1728160280722,-244.57513219,0.0004401,30]
[339931264,1728160280733,-150.0,0.0004401,30]
[339931265,1728160280742,-150.61011903,0.0004401,30]
[339931266,1728160280751,-150.0,0.0004401,30]
[339931267,1728160280760,-150.23770638,0.0004401,30]
[339931268,1728160280770,-150.0,0.0004401,30]
[339931269,1728160280780,-150.11042925,0.0004401,30]
[339931270,1728160280795,-150.0,0.0004401,30]
[339931271,1728160280805,-150.0,0.0004401,30]
[339931272,1728160280815,-150.60885511,0.0004401,30]
[339931273,1728160280826,-150.0,0.0004401,30]
[339931274,1728160280835,-500.0,0.00044016,4]
[339931275,1728160280843,-500.0,0.00044024,4]
[339931276,1728160280852,-500.0,0.00044033,4]
[339931277,1728160280861,-500.0,0.00044042,4]
[339931278,1728160280871,-500.0,0.00044051,4]
[339931279,1728160280880,-244.57513219,0.00044059,30]
[339931280,1728160280889,-500.0,0.0004406,4]
[339931281,1728160280898,-500.0,0.00044068,4]
[339931282,1728160280907,-500.0,0.00044077,4]
[339931283,1728160280916,-500.0,0.00044086,4]
[339931284,1728160280925,-500.0,0.00044088,60]
[339931285,1728160280934,-150.0,0.00044089,30]
[339931286,1728160280943,-500.0,0.00044095,4]
[339931287,1728160280953,-500.0,0.00044104,4]
[339931288,1728160280962,-244.57513219,0.00044109,30]
[339931289,1728160280971,-557.05,0.00044109,120]
[339931290,1728160280980,-819.04,0.00044109,30]
[339931291,1728160280989,-497.16673783,0.00044109,120]
[339931292,1728160280998,-713.62,0.00044109,120]
[339931293,1728160281007,-500.0,0.00044109,120]
[339931294,1728160281016,-500.0,0.00044109,120]
[339931295,1728160281026,-500.0,0.00044109,120]
[339931296,1728160281041,-500.0,0.00044109,120]
[339931297,1728160281050,-500.0,0.00044109,120]
[339931298,1728160281059,-500.0,0.00044109,120]
[339931299,1728160281068,-500.0,0.00044109,120]
[339931300,1728160281077,-711.55,0.00044109,120]
[339931301,1728160281087,-500.0,0.00044109,30]
[339931302,1728160281097,-500.0,0.00044109,120]
[339931303,1728160281106,-500.0,0.00044109,120]
[339931304,1728160281116,-238.14,0.00044109,120]
[339931305,1728160281125,-664.29,0.00044109,120]
[339931306,1728160281135,-500.0,0.00044109,120]
[339931307,1728160281144,-500.0,0.00044109,30]
[339931308,1728160281154,-551.35502043,0.00044109,120]
[339931309,1728160281163,-500.0,0.00044109,120]
[339931310,1728160281172,-1092.13,0.00044109,120]
[339931311,1728160281181,-500.0,0.00044109,120]
[339931312,1728160281190,-575.62,0.00044109,120]
[339931313,1728160281200,-740.53,0.00044109,120]
[339931314,1728160281209,-500.0,0.00044109,120]
[339931315,1728160281218,-1003.23,0.00044109,120]
[339931316,1728160281227,-500.0,0.00044109,120]
[339931317,1728160281236,-773.95,0.00044109,120]
[339931318,1728160281245,-1041.19,0.00044109,120]
[339931319,1728160281255,-855.74,0.00044109,120]
[339931320,1728160281264,-522.45,0.00044109,120]
[339931321,1728160281273,-528.13,0.00044109,120]
[339931322,1728160281289,-540.71,0.00044109,120]
[339931323,1728160281298,-1571.62,0.00044109,120]
[339931324,1728160281307,-906.95,0.00044109,120]
[339931325,1728160281316,-910.76,0.00044109,120]
[339931326,1728160281326,-1100.09,0.00044109,120]
[339931327,1728160281335,-802.95,0.00044109,120]
[339931328,1728160281345,-843.51,0.00044109,120]
[339931329,1728160281354,-942.42,0.00044109,120]
[339931330,1728160281363,-1026.8,0.00044109,120]
[339931331,1728160281373,-1281.74,0.00044109,120]
[339931332,1728160281383,-500.0,0.00044109,120]
[339931333,1728160281393,-994.5,0.00044109,120]
[339931334,1728160281402,-938.76,0.00044109,120]
[339931335,1728160281412,-1170.38,0.00044109,120]
[339931336,1728160281422,-912.82,0.00044109,120]
[339931337,1728160281432,-1002.9,0.00044109,120]
[339931338,1728160281441,-500.0,0.00044109,120]
[339931339,1728160281451,-1084.38,0.00044109,120]
[339931340,1728160281460,-706.32,0.00044109,120]
[339931341,1728160281470,-1023.73,0.00044109,120]
[339931342,1728160281479,-500.0,0.00044109,120]
[339931343,1728160281489,-500.0,0.00044109,120]
[339931344,1728160281498,-842.51,0.00044109,120]
[339931345,1728160281507,-689.81,0.00044109,120]
[339931346,1728160281517,-532.86,0.00044109,120]
[339931347,1728160281529,-500.0,0.00044109,120]
[339931348,1728160281538,-1071.49,0.00044109,120]
[339931349,1728160281547,-500.0,0.00044109,120]
[339931350,1728160281557,-1043.66,0.00044109,120]
[339931351,1728160281566,-500.0,0.00044109,120]
[339931352,1728160281576,-1009.53,0.00044109,120]
[339931353,1728160281585,-500.0,0.00044109,120]
[339931354,1728160281595,-787.17,0.00044109,120]
[339931355,1728160281605,-500.0,0.00044109,120]
[339931356,1728160281615,-681.86,0.00044109,120]
[339931357,1728160281624,-529.07,0.00044109,120]
[339931358,1728160281635,-995.14,0.00044109,120]
[339931359,1728160281645,-1349.08,0.00044109,120]
[339931360,1728160281655,-500.0,0.00044109,120]
[339931361,1728160281664,-1000.0,0.00044109,30]
[339931362,1728160281674,-150.0,0.0004411,30]
[339931363,1728160281683,-500.0,0.00044112,4]
[339931364,1728160281693,-500.0,0.00044121,4]
[339931365,1728160281702,-500.0,0.0004413,4]
[339931366,1728160281711,-500.0,0.00044139,4]
[339931367,1728160281720,-500.0,0.00044148,4]
[339931368,1728160281732,-500.0,0.00044156,4]
[339931369,1728160281742,-752.11389772,0.00044158,60]
[339931370,1728160281751,-244.57513219,0.00044158,30]
[339931371,1728160281760,-500.0,0.00044162,60]
[339931372,1728160281770,-500.0,0.00044165,4]
[339931373,1728160281780,-150.0,0.00044168,30]
[339931374,1728160281790,-500.0,0.00044174,4]
[339931375,1728160281800,-500.0,0.00044183,4]
[339931376,1728160281809,-500.0,0.00044192,4]
[339931377,1728160281819,-500.0,0.000442,4]
[339931378,1728160281828,-244.57513219,0.00044208,30]
[339931379,1728160281838,-500.0,0.00044209,4]
[339931380,1728160281847,-150.0,0.0004421,30]
[339931381,1728160281857,-500.0,0.00044218,4]
[339931382,1728160281866,-500.0,0.00044227,4]
[339931383,1728160281875,-500.0,0.00044236,4]
[339931384,1728160281884,-500.0,0.00044244,4]
[339931385,1728160281894,-150.0,0.00044247,30]
[339931386,1728160281903,-500.0,0.00044253,4]
[339931387,1728160281913,-244.57513219,0.00044257,30]
[339931388,1728160281922,-500.0,0.00044262,4]
[339931389,1728160281931,-500.0,0.00044271,4]
[339931390,1728160281941,-500.0,0.0004428,4]
[339931391,1728160281949,-150.0,0.00044282,30]
[339931392,1728160281959,-500.0,0.00044288,4]
[339931393,1728160281968,-500.0,0.00044297,4]
[339931394,1728160281978,-652.538585,0.00044301,30]
[339931395,1728160281987,-1639.289298,0.00044301,30]
[339931396,1728160281996,-500.0,0.00044306,4]
[339931397,1728160282007,-244.57513219,0.00044306,30]
[339931398,1728160282016,-150.0,0.00044309,30]
[339931399,1728160282025,-500.0,0.00044315,4]
[339931400,1728160282036,-500.0,0.00044324,4]
[339931401,1728160282045,-150.0,0.00044325,30]
[339931402,1728160282055,-500.0,0.00044332,4]
[339931403,1728160282064,-150.0,0.00044336,30]
[339931404,1728160282074,-500.0,0.00044341,4]
[339931405,1728160282083,-500.0,0.0004435,4]
[339931406,1728160282092,-244.57513219,0.00044356,30]
[339931407,1728160282102,-500.0,0.00044359,4]
[339931408,1728160282110,-500.0,0.00044368,4]
[339931409,1728160282120,-500.0,0.00044376,4]
[339931410,1728160282129,-208.18,0.00044384,120]
[339931411,1728160282242,-480.0,0.00044384,120]
[339931412,1728160282252,-500.0,0.00044385,4]
[339931413,1728160282261,-500.0,0.00044394,4]
[339931414,1728160282271,-500.0,0.00044403,4]
[339931415,1728160282282,-150.0,0.00044404,30]
[339931416,1728160282292,-244.57513219,0.00044405,30]
[339931417,1728160282301,-150.0,0.00044409,30]
[339931418,1728160282311,-500.0,0.00044412,4]
[339931419,1728160282321,-500.0,0.0004442,4]
[339931420,1728160282330,-500.0,0.00044429,4]
[339931421,1728160282340,-500.0,0.00044434,60]
[339931422,1728160282349,-500.0,0.00044438,4]
[339931423,1728160282359,-500.0,0.00044447,4]
[339931424,1728160282369,-900.0,0.00044452,120]
[339931425,1728160282378,-2800.0,0.00044452,120]
[339931426,1728160282388,-3800.0,0.00044452,120]
[339931427,1728160282398,-500.0,0.00044452,120]
[339931428,1728160282407,-244.57513219,0.00044455,30]
[339931429,1728160282416,-500.0,0.00044456,4]
[339931430,1728160282426,-552.24,0.00044462,2]
[339931431,1728160282435,-500.0,0.00044464,4]
[339931432,1728160282445,-500.0,0.00044473,4]
[339931433,1728160282454,-500.0,0.00044482,4]
[339931434,1728160282463,-500.0,0.00044483,60]
[339931435,1728160282473,-150.0,0.00044483,30]
[339931436,1728160282482,-500.0,0.00044491,4]
[339931437,1728160282491,-151.100605,0.00044498,120]
[339931438,1728160282500,-500.0,0.000445,4]
[339931439,1728160282509,-2110.0,0.000445,2]
[339931440,1728160282518,-244.57513219,0.00044504,30]
[339931441,1728160282527,-500.0,0.00044508,4]
[339931442,1728160282536,-150.0,0.00044509,30]
[339931443,1728160282546,-500.0,0.00044517,4]
[339931444,1728160282555,-819.04,0.0004452,30]
[339931445,1728160282564,-713.62,0.0004452,120]
[339931446,1728160282573,-500.0,0.0004452,120]
[339931447,1728160282582,-500.0,0.0004452,120]
[339931448,1728160282592,-500.0,0.0004452,120]
[339931449,1728160282601,-500.0,0.0004452,120]
[339931450,1728160282612,-500.0,0.0004452,120]
[339931451,1728160282623,-500.0,0.0004452,120]
[339931452,1728160282634,-500.0,0.0004452,120]
[339931453,1728160282645,-711.55,0.0004452,120]
[339931454,1728160282656,-500.0,0.0004452,30]
[339931455,1728160282665,-500.0,0.0004452,120]
[339931456,1728160282674,-500.0,0.0004452,120]
[339931457,1728160282683,-238.14,0.0004452,120]
[339931458,1728160282692,-664.29,0.0004452,120]
[339931459,1728160282701,-500.0,0.0004452,120]
[339931460,1728160282710,-500.0,0.0004452,30]
[339931461,1728160282720,-500.0,0.0004452,120]
[339931462,1728160282734,-1092.13,0.0004452,120]
[339931463,1728160282744,-500.0,0.0004452,120]
[339931464,1728160282753,-575.62,0.0004452,120]
[339931465,1728160282762,-740.53,0.0004452,120]
[339931466,1728160282770,-500.0,0.0004452,120]
[339931467,1728160282781,-1003.23,0.0004452,120]
[339931468,1728160282790,-500.0,0.0004452,120]
[339931469,1728160282800,-773.95,0.0004452,120]
[339931470,1728160282809,-1041.19,0.0004452,120]
[339931471,1728160282819,-855.74,0.0004452,120]
[339931472,1728160282828,-522.45,0.0004452,120]
[339931473,1728160282837,-528.13,0.0004452,120]
[339931474,1728160282846,-540.71,0.0004452,120]
[339931475,1728160282855,-1571.62,0.0004452,120]